fUST/lending_fUST_20240726
["ID","MTS","AMOUNT","RATE_DAILY","PERIOD"]
[333255841,1721993091750,534.94,0.00015,31]
[333255842,1721993091807,534.94,0.00015,31]
[333255843,1721993091870,534.94,0.00015,31]
[333255844,1721993091923,534.94,0.00015,31]
[333255845,1721993092018,534.94,0.00015,31]
[333255846,1721993092082,534.94,0.00015,31]
[333255847,1721993092145,534.94,0.00015,31]
[333255848,1721993092194,534.94,0.00015,31]
[333255849,1721993092258,534.94,0.00015,31]
[333255850,1721993092314,534.94,0.00015,31]
[333255851,1721993092376,534.94,0.00015,31]
[333255852,1721993092427,534.94,0.00015,31]
[333255853,1721993092487,534.94,0.00015,31]
[333255854,1721993092542,534.94,0.00015,31]
[333255855,1721993092601,534.94,0.00015,31]
[333255856,1721993092873,534.94,0.00015,31]
[333255860,1721993175513,1002.30790755,0.00015,31]
[333255861,1721993214162,-84.17969316,9.999e-05,2]
[333255862,1721993214185,-154.77557542,9.999e-05,2]
[333255863,1721993214209,-61.8502165,0.0001,2]
[333255871,1721993321188,333.62316884,0.0001,10]
[333255875,1721993399498,14000.0,0.00025,120]
[333255944,1721993438348,-251.18373258,9.999e-05,2]
[333255945,1721993438359,-240.0,9.999e-05,2]
[333255946,1721993438368,-200.0,0.0001,2]
[333255947,1721993438378,-257.15,0.00010959,2]
[333255948,1721993438388,-381.80387613,0.0001137,2]
[333255949,1721993438398,-166.666666,0.00012282,2]
[333255950,1721993438407,-166.666666,0.00012617,2]
[333255951,1721993438416,-166.666666,0.00012951,2]
[333255952,1721993438428,-166.666666,0.00013286,2]
[333255953,1721993438439,-200.0,0.00013425,2]
[333255954,1721993438451,-367.53930495,0.0001344,2]
[333255955,1721993438464,-620.00008974,0.00013555,2]
[333255956,1721993438478,-166.666666,0.00013621,2]
[333255957,1721993438489,-1119.00432027,0.00013631,2]
[333255995,1721993440365,-2991.00289208,0.00013631,2]
[333255996,1721993440375,-164.4384806,0.0001367,2]
[333255998,1721993440385,-184.49014654,0.00013698,2]
[333256000,1721993440394,-1637.46396495,0.00013698,2]
[333256003,1721993440409,-696.22126774,0.00013698,2]
[333256004,1721993440418,-3000.0,0.00013699,2]
[333256006,1721993440428,-398.225991,0.00013699,2]
[333256008,1721993440438,-184.49014654,0.00013708,2]
[333256010,1721993440448,-1660.76462408,0.00013709,2]
[333256012,1721993440459,-5198.4200719,0.0001372,2]
[333256015,1721993440472,-195.22632464,0.00013797,2]
[333256018,1721993440482,-159.80843732,0.00013797,2]
[333256021,1721993440491,-233.19147556,0.00013797,2]
[333256024,1721993440501,-500.0,0.00013797,2]
[333256026,1721993440510,-500.0,0.00013797,2]
[333256028,1721993440520,-500.0,0.00013797,2]
[333256030,1721993440530,-500.0,0.00013797,2]
[333256032,1721993440540,-500.0,0.00013797,2]
[333256034,1721993440549,-500.0,0.00013797,2]
[333256036,1721993440558,-500.0,0.00013797,2]
[333256038,1721993440567,-500.0,0.00013797,2]
[333256039,1721993440577,-500.0,0.00013797,2]
[333256041,1721993440586,-500.0,0.00013797,2]
[333256043,1721993440595,-500.0,0.00013797,2]
[333256045,1721993440605,-500.0,0.00013797,2]
[333256047,1721993440614,-5726.35867378,0.00013798,5]
[333256049,1721993440624,-448449.220529,0.00013798,2]
[333256051,1721993440634,-151.0,0.00013798,2]
[333256053,1721993440643,-151.0,0.00013798,2]
[333256055,1721993440653,-151.0,0.00013798,2]
[333256056,1721993440661,-151.0,0.00013798,2]
[333256058,1721993440671,-151.0,0.00013798,2]
[333256060,1721993440680,-151.0,0.00013798,2]
[333256062,1721993440689,-151.0,0.00013798,2]
[333256064,1721993440699,-158.90463331,0.000138,2]
[333256066,1721993440714,-3951.65903696,0.000138,2]
[333256170,1721993443954,-359.8822361,0.00013576,2]
[333256172,1721993443965,-6319.7946169,0.000138,2]
[333256190,1721993444144,-3000.0,0.000138,2]
[333256192,1721993444156,-4033.94693875,0.000138,2]
[333256294,1721993703076,417.31,0.00015,31]
[333256295,1721993703132,417.31,0.00015,31]
[333256296,1721993703268,417.31,0.00015,31]
[333256297,1721993703355,417.31,0.00015,31]
[333256298,1721993703451,417.31,0.00015,31]
[333256299,1721993703534,417.31,0.00015,31]
[333256300,1721993703591,417.31,0.00015,31]
[333256301,1721993703650,417.31,0.00015,31]
[333256302,1721993703725,417.31,0.00015,31]
[333256303,1721993703795,417.31,0.00015,31]
[333256304,1721993703857,417.31,0.00015,31]
[333256305,1721993703915,417.31,0.00015,31]
[333256306,1721993703973,417.31,0.00015,31]
[333256307,1721993704028,417.31,0.00015,31]
[333256308,1721993704082,417.31,0.00015,31]
[333256309,1721993704141,417.31,0.00015,31]
[333256310,1721993704209,417.31,0.00015,31]
[333256311,1721993704310,417.31,0.00015,31]
[333256312,1721993704436,417.31,0.00015,31]
[333256313,1721993704510,417.31,0.00015,31]
[333256323,1721994314890,344.59,0.00015,31]
[333256324,1721994314924,344.59,0.00015,31]
[333256325,1721994314971,344.59,0.00015,31]
[333256326,1721994315004,344.59,0.00015,31]
[333256327,1721994315035,344.59,0.00015,31]
[333256328,1721994315097,344.59,0.00015,31]
[333256329,1721994315165,344.59,0.00015,31]
[333256330,1721994315219,344.59,0.00015,31]
[333256331,1721994315277,344.59,0.00015,31]
[333256332,1721994315337,344.59,0.00015,31]
[333256333,1721994315405,344.59,0.00015,31]
[333256334,1721994315459,344.59,0.00015,31]
[333256335,1721994315686,344.59,0.00015,31]
[333256336,1721994315728,344.59,0.00015,31]
[333256337,1721994315761,344.59,0.00015,31]
[333256338,1721994315797,344.59,0.00015,31]
[333256339,1721994315835,344.59,0.00015,31]
[333256340,1721994315878,344.59,0.00015,31]
[333256341,1721994315909,344.59,0.00015,31]
[333256342,1721994315947,344.59,0.00015,31]
[333256393,1721994632522,-200.0,9.999e-05,2]
[333256395,1721994632533,-166.666666,0.00012265,2]
[333256397,1721994632543,-166.666666,0.00012599,2]
[333256399,1721994632553,-166.666666,0.00012934,2]
[333256401,1721994632563,-166.666666,0.00013268,2]
[333256403,1721994632573,-190.0,0.00013425,2]
[333256405,1721994632583,-285.6042567,0.000135,2]
[333256407,1721994632592,-589.9130568,0.000135,2]
[333256409,1721994632602,-153.6875328,0.000135,2]
[333256411,1721994632612,-367.53930495,0.00013514,2]
[333256414,1721994632622,-160.0,0.00013591,3]
[333256416,1721994632633,-153.0,0.000136,2]
[333256418,1721994632643,-166.666666,0.00013602,2]
[333256420,1721994632653,-3772.06314594,0.00013631,2]
[333256422,1721994632664,-179.4994204,0.00013697,2]
[333256424,1721994632673,-2041.97457863,0.00013697,2]
[333256426,1721994632683,-3000.0,0.00013699,2]
[333256428,1721994632693,-274.301469,0.00013699,2]
[333256430,1721994632703,-199.112996,0.00013699,2]
[333256432,1721994632713,-500.0,0.00013796,2]
[333256434,1721994632723,-562.26,0.00013797,2]
[333256436,1721994632734,-638.3,0.00013797,2]
[333256438,1721994632744,-1311.18,0.00013797,2]
[333256440,1721994632754,-500.0,0.00013797,2]
[333256442,1721994632764,-500.0,0.00013797,2]
[333256444,1721994632774,-500.0,0.00013797,2]
[333256446,1721994632783,-500.0,0.00013797,2]
[333256448,1721994632794,-932.27,0.00013797,2]
[333256450,1721994632805,-500.0,0.00013797,2]
[333256452,1721994632816,-500.0,0.00013797,2]
[333256453,1721994632825,-500.0,0.00013797,2]
[333256455,1721994632836,-566.78,0.00013797,2]
[333256457,1721994632847,-500.0,0.00013797,2]
[333256458,1721994632856,-500.0,0.00013797,2]
[333256459,1721994632866,-623.37,0.00013797,2]
[333256460,1721994632878,-500.0,0.00013797,2]
[333256461,1721994632888,-500.0,0.00013797,2]
[333256462,1721994632898,-963.0,0.00013797,2]
[333256463,1721994632908,-500.0,0.00013797,2]
[333256464,1721994632918,-500.0,0.00013797,2]
[333256465,1721994632928,-589.59,0.00013797,2]
[333256466,1721994632938,-500.0,0.00013797,2]
[333256467,1721994632947,-500.0,0.00013797,2]
[333256468,1721994632961,-500.0,0.00013797,2]
[333256469,1721994632972,-500.0,0.00013797,2]
[333256470,1721994632982,-500.0,0.00013797,2]
[333256471,1721994632992,-500.0,0.00013797,2]
[333256472,1721994633002,-500.0,0.00013797,2]
[333256473,1721994633013,-500.0,0.00013797,2]
[333256474,1721994633024,-500.0,0.00013797,2]
[333256475,1721994633035,-500.0,0.00013797,2]
[333256476,1721994633047,-500.0,0.00013797,2]
[333256477,1721994633057,-500.0,0.00013797,2]
[333256479,1721994633067,-595.85,0.00013797,2]
[333256480,1721994633078,-500.0,0.00013797,2]
[333256481,1721994633088,-500.0,0.00013797,2]
[333256482,1721994633099,-500.0,0.00013797,2]
[333256483,1721994633109,-523.22272385,0.00013797,2]
[333256484,1721994633120,-2258.7,0.00013797,2]
[333256485,1721994633131,-500.0,0.00013797,2]
[333256486,1721994633141,-1137.18,0.00013797,2]
[333256487,1721994633152,-504.26309056,0.00013797,2]
[333256488,1721994633173,-500.0,0.00013797,2]
[333256489,1721994633188,-500.0,0.00013797,2]
[333256490,1721994633202,-500.0,0.00013797,2]
[333256491,1721994633215,-504.64761444,0.00013797,2]
[333256492,1721994633228,-500.0,0.00013797,2]
[333256493,1721994633242,-500.0,0.00013797,2]
[333256494,1721994633256,-500.0,0.00013797,2]
[333256495,1721994633268,-150.32070938,0.00013797,2]
[333256496,1721994633281,-1168.9,0.00013797,2]
[333256497,1721994633301,-500.0,0.00013797,2]
[333256498,1721994633315,-860.4,0.00013797,2]
[333256499,1721994633328,-371.33360214,0.00013797,2]
[333256500,1721994633341,-552.6,0.00013797,2]
[333256501,1721994633354,-5379.52,0.00013797,2]
[333256502,1721994633368,-842.71,0.00013797,2]
[333256503,1721994633382,-1405.21,0.00013797,2]
[333256504,1721994633394,-500.0,0.00013797,2]
[333256505,1721994633407,-500.0,0.00013797,2]
[333256506,1721994633420,-500.0,0.00013797,2]
[333256507,1721994633436,-500.0,0.00013797,2]
[333256508,1721994633448,-500.0,0.00013797,2]
[333256509,1721994633462,-767.95,0.00013797,2]
[333256510,1721994633474,-500.0,0.00013797,2]
[333256511,1721994633486,-342.0328129,0.00013797,2]
[333256512,1721994633498,-500.0,0.00013797,2]
[333256513,1721994633510,-6896.96,0.00013797,2]
[333256514,1721994633524,-500.0,0.00013797,2]
[333256515,1721994633537,-525.66,0.00013797,2]
[333256516,1721994633551,-500.0,0.00013797,2]
[333256517,1721994633565,-500.0,0.00013797,2]
[333256518,1721994633578,-3053.95,0.00013797,2]
[333256519,1721994633592,-500.0,0.00013797,2]
[333256520,1721994633604,-500.0,0.00013797,2]
[333256521,1721994633617,-500.0,0.00013797,2]
[333256522,1721994633628,-1471.42,0.00013797,2]
[333256523,1721994633638,-500.0,0.00013797,2]
[333256524,1721994633650,-901.9,0.00013797,2]
[333256525,1721994633661,-500.0,0.00013797,2]
[333256526,1721994633674,-1630.55,0.00013797,2]
[333256527,1721994633685,-500.0,0.00013797,2]
[333256528,1721994633697,-423.09693936,0.00013797,2]
[333256529,1721994633711,-500.0,0.00013797,2]
[333256530,1721994633724,-1500.36,0.00013797,2]
[333256531,1721994633735,-500.0,0.00013797,2]
[333256532,1721994633747,-500.0,0.00013797,2]
[333256533,1721994633761,-500.0,0.00013797,2]
[333256534,1721994633772,-835.9,0.00013797,2]
[333256535,1721994633785,-781.09,0.00013797,2]
[333256536,1721994633799,-500.0,0.00013797,2]
[333256537,1721994633812,-506.40701166,0.00013797,2]
[333256538,1721994633826,-500.0,0.00013797,2]
[333256539,1721994633840,-560.29,0.00013797,2]
[333256540,1721994633854,-500.0,0.00013797,2]
[333256541,1721994633865,-500.0,0.00013797,2]
[333256542,1721994633877,-500.0,0.00013797,2]
[333256543,1721994633890,-500.0,0.00013797,2]
[333256544,1721994633901,-619.69,0.00013797,2]
[333256545,1721994633915,-2067.86151305,0.00013797,2]
[333256685,1721994926714,275.7,0.00015,31]
[333256686,1721994926762,275.7,0.00015,31]
[333256687,1721994926826,275.7,0.00015,31]
[333256688,1721994926878,275.7,0.00015,31]
[333256689,1721994926958,275.7,0.00015,31]
[333256690,1721994927010,275.7,0.00015,31]
[333256691,1721994927065,275.7,0.00015,31]
[333256692,1721994927136,275.7,0.00015,31]
[333256693,1721994927196,275.7,0.00015,31]
[333256694,1721994927257,275.7,0.00015,31]
[333256695,1721994927308,275.7,0.00015,31]
[333256696,1721994927369,275.7,0.00015,31]
[333256697,1721994927433,275.7,0.00015,31]
[333256698,1721994927488,275.7,0.00015,31]
[333256699,1721994927561,275.7,0.00015,31]
[333256700,1721994927608,275.7,0.00015,31]
[333256701,1721994927671,275.7,0.00015,31]
[333256702,1721994927731,275.7,0.00015,31]
[333256703,1721994927789,275.7,0.00015,31]
[333256704,1721994927853,275.7,0.00015,31]
[333256706,1721995538452,220.59,0.00015,31]
[333256707,1721995538528,220.59,0.00015,31]
[333256708,1721995538567,220.59,0.00015,31]
[333256709,1721995538631,220.59,0.00015,31]
[333256710,1721995538696,220.59,0.00015,31]
[333256711,1721995538761,220.59,0.00015,31]
[333256712,1721995538810,220.59,0.00015,31]
[333256713,1721995538875,220.59,0.00015,31]
[333256714,1721995538943,220.59,0.00015,31]
[333256715,1721995539002,220.59,0.00015,31]
[333256716,1721995539062,220.59,0.00015,31]
[333256717,1721995539123,220.59,0.00015,31]
[333256718,1721995539178,220.59,0.00015,31]
[333256719,1721995539243,220.59,0.00015,31]
[333256720,1721995539307,220.59,0.00015,31]
[333256721,1721995539369,220.59,0.00015,31]
[333256722,1721995539435,220.59,0.00015,31]
[333256723,1721995539486,220.59,0.00015,31]
[333256724,1721995539547,220.59,0.00015,31]
[333256725,1721995539600,220.59,0.00015,31]
[333256745,1721995833099,-166.666666,0.0001235,2]
[333256746,1721995833109,-166.666666,0.00012686,2]
[333256747,1721995833120,-166.666666,0.00013023,2]
[333256748,1721995833130,-166.666666,0.0001336,2]
[333256749,1721995833141,-415.8144295,0.00013424,2]
[333256806,1721995838687,-2550.15556593,0.00013424,2]
[333256808,1721995838697,-180.5,0.00013425,2]
[333256810,1721995838707,-188.55384693,0.00013429,2]
[333256812,1721995838720,-178.98545802,0.00013429,2]
[333256814,1721995838730,-587.7026194,0.000135,2]
[333256816,1721995838740,-620.00000448,0.0001352,2]
[333256818,1721995838750,-10584.57873568,0.00013597,2]
[333256821,1721995838762,-1222.63410697,0.00013597,2]
[333256823,1721995838771,-166.666666,0.00013696,2]
[333256825,1721995838781,-343.86611453,0.00013697,2]
[333256827,1721995838792,-1316.89850955,0.00013697,2]
[333256829,1721995838802,-1786.72775631,0.00013697,2]
[333256831,1721995838812,-3000.0,0.00013699,2]
[333256833,1721995838822,-199.1129963,0.00013699,2]
[333256835,1721995838832,-500.0,0.00013786,2]
[333256837,1721995838841,-500.0,0.00013786,2]
[333256840,1721995838851,-233.19147556,0.00013786,2]
[333256842,1721995838860,-311.13040118,0.00013786,2]
[333256844,1721995838870,-500.0,0.00013786,2]
[333256846,1721995838879,-500.0,0.00013786,2]
[333256849,1721995838889,-159.80843732,0.00013786,2]
[333256851,1721995838898,-500.0,0.00013786,2]
[333256853,1721995838907,-500.0,0.00013786,2]
[333256855,1721995838917,-500.0,0.00013786,2]
[333256857,1721995838926,-500.0,0.00013786,2]
[333256859,1721995838936,-500.0,0.00013786,2]
[333256861,1721995838946,-500.0,0.00013786,2]
[333256863,1721995838955,-500.0,0.00013786,2]
[333256865,1721995838964,-500.0,0.00013786,2]
[333256868,1721995838974,-500.0,0.00013786,2]
[333256870,1721995838983,-500.0,0.00013786,2]
[333256872,1721995838993,-500.0,0.00013786,2]
[333256874,1721995839002,-500.0,0.00013786,2]
[333256876,1721995839012,-248.21341072,0.00013786,2]
[333256877,1721995839021,-5726.35867378,0.00013787,5]
[333256880,1721995839032,-365784.64020361,0.00013787,2]
[333257160,1721995841877,-89.11838739,0.00013787,2]
[333257162,1721995841889,-91468.4396478,0.00013788,2]
[333257164,1721995841899,-231650.27280268,0.00013797,5]
[333257166,1721995841910,-151.0,0.00013797,2]
[333257168,1721995841921,-151.0,0.00013797,2]
[333257170,1721995841932,-500.0,0.00013797,2]
[333257172,1721995841942,-503.04489865,0.00013797,2]
[333257174,1721995841951,-548.64872458,0.00013797,2]
[333257177,1721995841963,-506.24815418,0.00013797,2]
[333257179,1721995841973,-500.0,0.00013797,2]
[333257181,1721995841983,-500.0,0.00013797,2]
[333257183,1721995841992,-500.0,0.00013797,2]
[333257185,1721995842002,-209.24527962,0.00013797,2]
[333257187,1721995842014,-501.34573133,0.00013797,2]
[333257189,1721995842028,-500.0,0.00013797,2]
[333257192,1721995842039,-524.68423695,0.00013797,2]
[333257194,1721995842051,-505.92248402,0.00013797,2]
[333257196,1721995842061,-500.0,0.00013797,2]
[333257198,1721995842072,-500.0,0.00013797,2]
[333257200,1721995842082,-500.0,0.00013797,2]
[333257202,1721995842091,-500.0,0.00013797,2]
[333257204,1721995842100,-500.0,0.00013797,2]
[333257206,1721995842110,-500.0,0.00013797,2]
[333257208,1721995842121,-627.79616502,0.00013797,2]
[333257210,1721995842131,-500.0,0.00013797,2]
[333257213,1721995842143,-500.0,0.00013797,2]
[333257215,1721995842152,-500.0,0.00013797,2]
[333257216,1721995842162,-500.0,0.00013797,2]
[333257218,1721995842171,-500.0,0.00013797,2]
[333257220,1721995842181,-500.0,0.00013797,2]
[333257222,1721995842192,-500.0,0.00013797,2]
[333257225,1721995842203,-500.0,0.00013797,2]
[333257227,1721995842214,-151.0,0.00013797,2]
[333257229,1721995842226,-151.0,0.00013797,2]
[333257231,1721995842235,-500.0,0.00013797,2]
[333257233,1721995842245,-500.0,0.00013797,2]
[333257235,1721995842254,-151.0,0.00013797,2]
[333257237,1721995842264,-500.66325794,0.00013797,2]
[333257239,1721995842274,-500.0,0.00013797,2]
[333257241,1721995842284,-500.0,0.00013797,2]
[333257243,1721995842293,-597.27,0.00013797,2]
[333257245,1721995842303,-500.0,0.00013797,2]
[333257247,1721995842312,-500.0,0.00013797,2]
[333257249,1721995842322,-500.0,0.00013797,2]
[333257252,1721995842332,-500.0,0.00013797,2]
[333257254,1721995842345,-500.0,0.00013797,2]
[333257256,1721995842354,-500.0,0.00013797,2]
[333257258,1721995842364,-935.79,0.00013797,2]
[333257260,1721995842373,-500.0,0.00013797,2]
[333257262,1721995842383,-500.0,0.00013797,2]
[333257264,1721995842396,-500.0,0.00013797,2]
[333257266,1721995842406,-500.0,0.00013797,2]
[333257268,1721995842418,-500.0,0.00013797,2]
[333257270,1721995842431,-500.0,0.00013797,2]
[333257272,1721995842440,-637.6329122,0.00013797,2]
[333257274,1721995842449,-246.37709923,0.00013797,2]
[333257276,1721995842458,-500.0,0.00013797,2]
[333257278,1721995842467,-220.98056103,0.00013797,2]
[333257280,1721995842476,-500.0,0.00013797,2]
[333257282,1721995842485,-500.0,0.00013797,2]
[333257284,1721995842495,-500.0,0.00013797,2]
[333257286,1721995842505,-500.0,0.00013797,2]
[333257288,1721995842515,-516.64348713,0.00013797,2]
[333257290,1721995842524,-500.0,0.00013797,2]
[333257292,1721995842534,-500.0,0.00013797,2]
[333257294,1721995842543,-282.95356242,0.00013797,2]
[333257296,1721995842553,-689.58,0.00013797,2]
[333257298,1721995842562,-501.5405468,0.00013797,2]
[333257300,1721995842571,-503.77968087,0.00013797,2]
[333257302,1721995842581,-500.0,0.00013797,2]
[333257304,1721995842590,-203.835903,0.00013797,2]
[333257306,1721995842599,-448.52733779,0.00013797,2]
[333257308,1721995842609,-500.0,0.00013797,2]
[333257310,1721995842619,-261.47655214,0.00013797,2]
[333257311,1721995842628,-500.0,0.00013797,2]
[333257312,1721995842640,-151.0,0.00013797,2]
[333257314,1721995842650,-517.66610043,0.00013797,2]
[333257315,1721995842660,-500.0,0.00013797,2]
[333257316,1721995842670,-500.58453657,0.00013797,2]
[333257317,1721995842679,-500.0,0.00013797,2]
[333257318,1721995842689,-500.0,0.00013797,2]
[333257319,1721995842698,-500.0,0.00013797,2]
[333257320,1721995842708,-500.0,0.00013797,2]
[333257321,1721995842717,-500.0,0.00013797,2]
[333257322,1721995842726,-500.0,0.00013797,2]
[333257323,1721995842736,-995.7,0.00013797,2]
[333257324,1721995842745,-500.366841,0.00013797,2]
[333257325,1721995842754,-520.52316604,0.00013797,2]
[333257326,1721995842763,-500.0,0.00013797,2]
[333257327,1721995842773,-500.0,0.00013797,2]
[333257328,1721995842782,-500.0,0.00013797,2]
[333257329,1721995842792,-500.0,0.00013797,2]
[333257330,1721995842801,-500.0,0.00013797,2]
[333257331,1721995842810,-500.0,0.00013797,2]
[333257332,1721995842820,-500.0,0.00013797,2]
[333257333,1721995842829,-505.2805915,0.00013797,2]
[333257334,1721995842838,-502.81326667,0.00013797,2]
[333257335,1721995842848,-502.16659632,0.00013797,2]
[333257337,1721995842857,-500.0,0.00013797,2]
[333257339,1721995842867,-500.0,0.00013797,2]
[333257340,1721995842876,-401.4705389,0.00013797,2]
[333257341,1721995842886,-151.0,0.00013797,2]
[333257342,1721995842897,-500.0,0.00013797,2]
[333257343,1721995842907,-151.0,0.00013797,2]
[333257344,1721995842916,-500.0,0.00013797,2]
[333257345,1721995842926,-500.0,0.00013797,2]
[333257346,1721995842936,-151.0,0.00013797,2]
[333257347,1721995842945,-151.0,0.00013797,2]
[333257349,1721995842955,-913.94,0.00013797,2]
[333257351,1721995842965,-152.466772,0.00013797,2]
[333257352,1721995842975,-500.0,0.00013797,2]
[333257354,1721995842984,-500.0,0.00013797,2]
[333257355,1721995842994,-500.0,0.00013797,2]
[333257356,1721995843003,-500.0,0.00013797,2]
[333257357,1721995843013,-500.0,0.00013797,2]
[333257358,1721995843023,-452.94481847,0.00013797,2]
[333257359,1721995843033,-151.0,0.00013797,2]
[333257360,1721995843043,-151.0,0.00013797,2]
[333257361,1721995843052,-151.0,0.00013797,2]
[333257362,1721995843062,-500.0,0.00013797,2]
[333257363,1721995843072,-500.0,0.00013797,2]
[333257365,1721995843082,-500.0,0.00013797,2]
[333257366,1721995843091,-500.0,0.00013797,2]
[333257368,1721995843100,-779.45,0.00013797,2]
[333257369,1721995843110,-500.0,0.00013797,2]
[333257370,1721995843120,-688.19,0.00013797,2]
[333257371,1721995843129,-538.83,0.00013797,2]
[333257373,1721995843140,-151.0,0.00013797,2]
[333257375,1721995843149,-151.0,0.00013797,2]
[333257377,1721995843159,-151.0,0.00013797,2]
[333257379,1721995843168,-743.43,0.00013797,2]
[333257381,1721995843178,-611.7,0.00013797,2]
[333257383,1721995843187,-500.0,0.00013797,2]
[333257385,1721995843196,-500.0,0.00013797,2]
[333257387,1721995843206,-500.0,0.00013797,2]
[333257389,1721995843217,-500.0,0.00013797,2]
[333257391,1721995843226,-500.0,0.00013797,2]
[333257393,1721995843236,-1256.55,0.00013797,2]
[333257395,1721995843245,-151.0,0.00013797,2]
[333257397,1721995843254,-151.0,0.00013797,2]
[333257399,1721995843264,-151.0,0.00013797,2]
[333257400,1721995843273,-151.0,0.00013797,2]
[333257401,1721995843282,-500.0,0.00013797,2]
[333257402,1721995843292,-500.0,0.00013797,2]
[333257405,1721995843302,-500.0,0.00013797,2]
[333257408,1721995843311,-500.0,0.00013797,2]
[333257410,1721995843320,-701.162484,0.00013797,2]
[333257412,1721995843330,-542.61,0.00013797,2]
[333257414,1721995843342,-701.162484,0.00013797,2]
[333257415,1721995843352,-701.162484,0.00013797,2]
[333257416,1721995843362,-701.162484,0.00013797,2]
[333257417,1721995843371,-500.0,0.00013797,2]
[333257418,1721995843381,-701.162484,0.00013797,2]
[333257420,1721995843391,-701.162484,0.00013797,2]
[333257422,1721995843401,-701.162484,0.00013797,2]
[333257423,1721995843410,-701.162484,0.00013797,2]
[333257424,1721995843420,-893.43,0.00013797,2]
[333257425,1721995843430,-151.0,0.00013797,2]
[333257426,1721995843439,-151.0,0.00013797,2]
[333257427,1721995843449,-151.0,0.00013797,2]
[333257429,1721995843459,-500.0,0.00013797,2]
[333257431,1721995843468,-500.0,0.00013797,2]
[333257433,1721995843478,-500.0,0.00013797,2]
[333257434,1721995843487,-500.0,0.00013797,2]
[333257435,1721995843496,-692.32,0.00013797,2]
[333257436,1721995843506,-500.0,0.00013797,2]
[333257437,1721995843516,-593.87,0.00013797,2]
[333257438,1721995843525,-521.05207436,0.00013797,2]
[333257439,1721995843535,-500.0,0.00013797,2]
[333257440,1721995843544,-597.39,0.00013797,2]
[333257441,1721995843554,-605.80698513,0.00013797,2]
[333257442,1721995843563,-523.66,0.00013797,2]
[333257443,1721995843572,-500.0,0.00013797,2]
[333257444,1721995843581,-500.0,0.00013797,2]
[333257445,1721995843591,-500.0,0.00013797,2]
[333257446,1721995843600,-500.0,0.00013797,2]
[333257447,1721995843609,-922.88,0.00013797,2]
[333257449,1721995843619,-976.47,0.00013797,2]
[333257450,1721995843628,-500.0,0.00013797,2]
[333257451,1721995843637,-500.0,0.00013797,2]
[333257452,1721995843647,-503.68964469,0.00013797,2]
[333257453,1721995843656,-500.0,0.00013797,2]
[333257454,1721995843666,-500.0,0.00013797,2]